fUSD/lending_fUSD_20241223
["ID","MTS","AMOUNT","RATE_DAILY","PERIOD"]
[346369194,1734916239972,-500.0,0.0001935,2]
[346369195,1734916239982,-661.01,0.0001935,2]
[346369196,1734916239991,-500.0,0.0001935,2]
[346369197,1734916239999,-500.0,0.0001935,2]
[346369198,1734916240008,-500.0,0.0001935,2]
[346369199,1734916240017,-500.0,0.0001935,2]
[346369200,1734916240026,-500.0,0.0001935,2]
[346369201,1734916240035,-500.0,0.0001935,2]
[346369202,1734916240044,-500.0,0.0001935,2]
[346369203,1734916240054,-500.0,0.0001935,2]
[346369204,1734916240063,-500.0,0.0001935,2]
[346369205,1734916240073,-669.41,0.0001935,2]
[346369206,1734916240082,-500.0,0.0001935,2]
[346369207,1734916240091,-604.62,0.0001935,2]
[346369208,1734916240100,-500.0,0.0001935,2]
[346369209,1734916240109,-459.85636369,0.0001935,2]
[346369210,1734916240119,-500.0,0.0001935,2]
[346369211,1734916240128,-500.0,0.0001935,2]
[346369212,1734916240137,-500.0,0.0001935,2]
[346369213,1734916240147,-500.0,0.0001935,2]
[346369214,1734916240156,-782.74,0.0001935,2]
[346369215,1734916240166,-500.0,0.0001935,2]
[346369216,1734916240175,-500.0,0.0001935,2]
[346369217,1734916240184,-500.0,0.0001935,2]
[346369218,1734916240194,-502.87,0.0001935,2]
[346369219,1734916240203,-534.83918005,0.0001935,2]
[346369220,1734916240212,-600.0,0.0001935,2]
[346369221,1734916240221,-580.47388603,0.0001935,2]
[346369222,1734916240231,-500.0,0.0001935,2]
[346369223,1734916240414,-500.0,0.0001935,2]
[346369224,1734916240424,-500.0,0.0001935,2]
[346369225,1734916240434,-500.0,0.0001935,2]
[346369226,1734916240443,-1064.86,0.0001935,2]
[346369227,1734916240452,-500.0,0.0001935,2]
[346369228,1734916240462,-500.0,0.0001935,2]
[346369229,1734916240471,-625.09031558,0.0001935,2]
[346369230,1734916240480,-500.0,0.0001935,2]
[346369231,1734916240493,-500.0,0.0001935,2]
[346369232,1734916240503,-500.0,0.0001935,2]
[346369233,1734916240512,-500.0,0.0001935,2]
[346369234,1734916240522,-922.33,0.0001935,2]
[346369235,1734916240532,-500.0,0.0001935,2]
[346369236,1734916240541,-500.0,0.0001935,2]
[346369237,1734916240551,-1090.84,0.0001935,2]
[346369238,1734916240562,-500.0,0.0001935,2]
[346369239,1734916240573,-500.0,0.0001935,2]
[346369240,1734916240583,-500.0,0.0001935,2]
[346369241,1734916240592,-1627.76,0.0001935,2]
[346369242,1734916240603,-526.56063358,0.0001935,2]
[346369243,1734916240613,-500.0,0.0001935,2]
[346369244,1734916240624,-500.0,0.0001935,2]
[346369245,1734916240635,-1068.85,0.0001935,2]
[346369246,1734916240645,-500.0,0.0001935,2]
[346369247,1734916240655,-1374.1,0.0001935,2]
[346369248,1734916240665,-500.0,0.0001935,2]
[346369249,1734916240675,-512.6,0.0001935,2]
[346369250,1734916240684,-500.0,0.0001935,2]
[346369251,1734916240694,-2578.21,0.0001935,2]
[346369252,1734916240706,-2938.59,0.0001935,2]
[346369253,1734916240716,-500.0,0.0001935,2]
[346369254,1734916240726,-859.34,0.0001935,2]
[346369255,1734916240736,-500.0,0.0001935,2]
[346369256,1734916240747,-500.0,0.0001935,2]
[346369257,1734916240756,-500.0,0.0001935,2]
[346369258,1734916240766,-500.0,0.0001935,2]
[346369259,1734916240776,-500.0,0.0001935,2]
[346369260,1734916240785,-500.0,0.0001935,2]
[346369261,1734916240796,-1209.37,0.0001935,2]
[346369262,1734916240806,-500.0,0.0001935,2]
[346369263,1734916240820,-500.0,0.0001935,2]
[346369264,1734916240830,-500.0,0.0001935,2]
[346369265,1734916240840,-320.04,0.0001935,2]
[346369266,1734916240849,-500.0,0.0001935,2]
[346369267,1734916240859,-500.0,0.0001935,2]
[346369268,1734916240872,-1641.43,0.0001935,2]
[346369269,1734916240893,-2164.12,0.0001935,2]
[346369270,1734916240907,-729.37,0.0001935,2]
[346369271,1734916240916,-511.01442336,0.0001935,2]
[346369272,1734916240926,-500.0,0.0001935,2]
[346369273,1734916240936,-500.0,0.0001935,2]
[346369274,1734916240946,-500.0,0.0001935,2]
[346369275,1734916240955,-981.79,0.0001935,2]
[346369276,1734916240964,-500.0,0.0001935,2]
[346369277,1734916240974,-500.0,0.0001935,2]
[346369278,1734916240984,-500.0,0.0001935,2]
[346369279,1734916240993,-257.77594439,0.0001935,2]
[346369280,1734916241003,-2721.09,0.0001935,2]
[346369281,1734916241012,-500.0,0.0001935,2]
[346369282,1734916241021,-500.0,0.0001935,2]
[346369283,1734916241031,-500.0,0.0001935,2]
[346369284,1734916241040,-500.0,0.0001935,2]
[346369285,1734916241049,-658.01,0.0001935,2]
[346369286,1734916241058,-500.0,0.0001935,2]
[346369287,1734916241071,-500.0,0.0001935,2]
[346369288,1734916241080,-500.0,0.0001935,2]
[346369289,1734916241090,-2716.6,0.0001935,2]
[346369290,1734916241099,-500.0,0.0001935,2]
[346369291,1734916241108,-500.0,0.0001935,2]
[346369292,1734916241117,-2561.41,0.0001935,2]
[346369293,1734916241127,-507.38985623,0.0001935,2]
[346369294,1734916241136,-500.0,0.0001935,2]
[346369295,1734916241145,-500.0,0.0001935,2]
[346369296,1734916241155,-627.92,0.00019351,2]
[346369297,1734916241164,-500.0,0.00019351,2]
[346369298,1734916241174,-500.0,0.00019351,2]
[346369299,1734916241184,-993.9,0.00019351,2]
[346369300,1734916241193,-1949.43,0.00019351,2]
[346369301,1734916241203,-1217.42,0.00019351,2]
[346369302,1734916241213,-500.0,0.00019351,2]
[346369303,1734916241223,-1013.7,0.00019351,2]
[346369304,1734916241232,-1254.5,0.00019351,2]
[346369305,1734916241242,-500.0,0.00019351,2]
[346369306,1734916241251,-1101.66,0.00019351,2]
[346369307,1734916241260,-2021.09,0.00019351,2]
[346369308,1734916241270,-595.12,0.00019351,2]
[346369309,1734916241279,-1121.17,0.00019351,2]
[346369310,1734916241290,-12587.06,0.00019351,2]
[346369311,1734916241300,-1530.39,0.00019351,2]
[346369312,1734916241311,-938.39,0.00019351,2]
[346369313,1734916241320,-668.21,0.00019351,2]
[346369314,1734916241330,-1882.12,0.00019351,2]
[346369315,1734916241340,-10249.92,0.00019351,2]
[346369316,1734916241350,-500.0,0.00019351,2]
[346369317,1734916241359,-1089.18,0.00019351,2]
[346369318,1734916241369,-1384.25,0.00019351,2]
[346369319,1734916241378,-867.8,0.00019351,2]
[346369320,1734916241388,-1779.42,0.00019351,2]
[346369321,1734916241397,-500.0,0.00019351,2]
[346369322,1734916241406,-1000.0,0.00019351,2]
[346369323,1734916241415,-822.84,0.00019351,2]
[346369324,1734916241425,-918.32,0.00019351,2]
[346369325,1734916241435,-500.0,0.00019452,2]
[346369326,1734916241445,-500.0,0.00019452,2]
[346369327,1734916241454,-500.0,0.00019452,2]
[346369328,1734916241464,-500.0,0.00019452,2]
[346369329,1734916241473,-170.75,0.00019452,2]
[346369330,1734916241482,-500.0,0.00019452,2]
[346369331,1734916241493,-500.0,0.00019452,2]
[346369332,1734916241502,-500.0,0.00019452,2]
[346369333,1734916241512,-500.0,0.00019452,2]
[346369334,1734916241521,-500.0,0.00019452,2]
[346369335,1734916241530,-500.0,0.00019452,2]
[346369336,1734916241540,-500.0,0.00019452,2]
[346369337,1734916241549,-261.3,0.00019452,2]
[346369338,1734916241558,-500.0,0.00019452,2]
[346369339,1734916241571,-562.44,0.00019452,2]
[346369340,1734916241580,-500.0,0.00019452,2]
[346369341,1734916241590,-500.0,0.00019452,2]
[346369342,1734916241599,-500.0,0.00019452,2]
[346369343,1734916241608,-500.0,0.00019452,2]
[346369344,1734916241617,-167.76,0.00019452,2]
[346369345,1734916241627,-500.0,0.00019452,2]
[346369346,1734916241637,-500.0,0.00019452,2]
[346369347,1734916241647,-500.0,0.00019452,2]
[346369348,1734916241657,-500.0,0.00019452,2]
[346369349,1734916241667,-500.0,0.00019452,2]
[346369350,1734916241677,-500.0,0.00019452,2]
[346369351,1734916241686,-500.0,0.00019452,2]
[346369352,1734916241697,-500.0,0.00019452,2]
[346369353,1734916241711,-500.0,0.00019452,2]
[346369354,1734916241721,-511.14,0.00019452,2]
[346369355,1734916241731,-729.52,0.00019452,2]
[346369356,1734916241742,-500.0,0.00019452,2]
[346369357,1734916241752,-500.0,0.00019452,2]
[346369358,1734916241762,-500.0,0.00019452,2]
[346369359,1734916241772,-220.84029176,0.00019452,2]
[346369360,1734916241782,-500.0,0.00019452,2]
[346369361,1734916241792,-500.0,0.00019452,2]
[346369362,1734916241802,-500.0,0.00019452,2]
[346369363,1734916241817,-500.0,0.00019452,2]
[346369364,1734916241826,-501.14,0.00019452,2]
[346369365,1734916241836,-634.57,0.00019452,2]
[346369366,1734916241846,-780.06,0.00019452,2]
[346369367,1734916241856,-326.9,0.00019452,2]
[346369368,1734916241866,-500.0,0.00019452,2]
[346369369,1734916241876,-500.0,0.00019452,2]
[346369370,1734916241885,-500.0,0.00019452,2]
[346369371,1734916241895,-361.11086281,0.00019452,2]
[346369372,1734916241905,-633.52,0.00019452,2]
[346369373,1734916241915,-500.0,0.00019452,2]
[346369374,1734916241925,-629.03,0.00019452,2]
[346369375,1734916241935,-500.0,0.00019452,2]
[346369376,1734916241944,-500.0,0.00019452,2]
[346369377,1734916241954,-500.0,0.00019452,2]
[346369378,1734916241963,-512.65,0.00019452,2]
[346369379,1734916241973,-500.0,0.00019452,2]
[346369380,1734916241982,-500.0,0.00019452,2]
[346369381,1734916241991,-500.0,0.00019452,2]
[346369382,1734916242001,-500.0,0.00019452,2]
[346369383,1734916242010,-507.34,0.00019452,2]
[346369384,1734916242020,-1121.35,0.00019452,2]
[346369385,1734916242030,-500.0,0.00019452,2]
[346369386,1734916242040,-1693.04,0.00019452,2]
[346369387,1734916242050,-3064.32,0.00019452,2]
[346369388,1734916242059,-500.0,0.00019452,2]
[346369389,1734916242073,-540.71,0.00019452,2]
[346369390,1734916242083,-1613.470874,0.00019452,2]
[346369391,1734916242092,-630.9,0.00019452,2]
[346369392,1734916242103,-500.0,0.00019452,2]
[346369393,1734916242115,-1300.027125,0.00019452,2]
[346369394,1734916242125,-1388.38,0.00019452,2]
[346369395,1734916242134,-1111.56,0.00019452,2]
[346369396,1734916242144,-500.0,0.00019452,2]
[346369397,1734916242154,-1024.06,0.00019452,2]
[346369398,1734916242164,-772.27,0.00019452,2]
[346369399,1734916242174,-1934.39,0.00019452,2]
[346369400,1734916242183,-500.0,0.00019452,2]
[346369401,1734916242193,-560.82,0.00019452,2]
[346369402,1734916242202,-3543.54,0.00019452,2]
[346369403,1734916242213,-855.48,0.00019452,2]
[346369404,1734916242223,-1069.68,0.00019452,2]
[346369405,1734916242232,-500.0,0.00019452,2]
[346369406,1734916242242,-782.18,0.00019452,2]
[346369407,1734916242252,-4233.7,0.00019452,2]
[346369408,1734916242261,-908.07,0.00019452,2]
[346369409,1734916242271,-776.31,0.00019452,2]
[346369410,1734916242280,-500.0,0.00019452,2]
[346369411,1734916242290,-1059.36,0.00019452,2]
[346369412,1734916242300,-500.0,0.00019452,2]
[346369413,1734916242312,-1019.52,0.00019452,2]
[346369414,1734916242323,-780.44,0.00019452,2]
[346369415,1734916242333,-500.0,0.00019452,2]
[346369416,1734916242343,-500.0,0.00019452,2]
[346369418,1734916242352,-1104.92,0.00019452,2]
[346369419,1734916242362,-500.0,0.00019452,2]
[346369422,1734916242371,-1097.33,0.00019452,2]
[346369424,1734916242381,-500.0,0.00019452,2]
[346369425,1734916242390,-1239.45,0.00019452,2]
[346369426,1734916242399,-500.0,0.00019452,2]
[346369427,1734916242409,-1249.64,0.00019452,2]
[346369429,1734916242418,-2260.7,0.00019452,2]
[346369431,1734916242427,-1331.3,0.00019452,2]
[346369433,1734916242436,-500.0,0.00019452,2]
[346369435,1734916242446,-2676.93,0.00019452,2]
[346369437,1734916242455,-1312.24,0.00019452,2]
[346369439,1734916242465,-806.4,0.00019452,2]
[346369441,1734916242474,-5856.15,0.00019452,2]
[346369443,1734916242484,-152.0,0.00019579,4]
[346369445,1734916242494,-683.8,0.00019623,2]
[346369447,1734916242503,-706.67,0.00019623,2]
[346369449,1734916242513,-500.0,0.00019623,2]
[346369451,1734916242523,-937.61,0.00019623,2]
[346369453,1734916242532,-737.7,0.00019623,2]
[346369454,1734916242542,-1664.79,0.00019623,2]
[346369455,1734916242552,-4349.47,0.00019623,2]
[346369456,1734916242565,-500.0,0.00019623,2]
[346369457,1734916242578,-500.0,0.00019623,2]
[346369458,1734916242588,-1019.79,0.00019623,2]
[346369459,1734916242597,-1154.67,0.00019623,2]
[346369460,1734916242607,-1868.33,0.00019623,2]
[346369461,1734916242617,-795.04,0.00019623,2]
[346369462,1734916242627,-752.46,0.00019623,2]
[346369463,1734916242636,-760.32,0.00019623,2]
[346369464,1734916242646,-1264.17,0.00019623,2]
[346369465,1734916242656,-4419.14,0.00019623,2]
[346369466,1734916242666,-598.6,0.00019623,2]
[346369467,1734916242676,-500.0,0.00019623,2]
[346369468,1734916242686,-500.0,0.00019623,2]
[346369469,1734916242696,-620.83,0.00019623,2]
[346369470,1734916242709,-500.0,0.00019623,2]
[346369471,1734916242719,-821.0,0.00019623,2]
[346369472,1734916242729,-749.11,0.00019623,2]
[346369473,1734916242738,-156.68,0.00019623,2]
[346369474,1734916242748,-500.0,0.00019623,2]
[346369475,1734916242757,-500.0,0.00019624,2]
[346369476,1734916242767,-500.0,0.00019624,2]
[346369477,1734916242776,-500.0,0.00019624,2]
[346369478,1734916242786,-500.0,0.00019624,2]
[346369479,1734916242797,-500.0,0.00019624,2]
[346369480,1734916242818,-635.64,0.00019624,2]
[346369481,1734916242828,-157.48,0.00019624,2]
[346369482,1734916242838,-500.0,0.00019624,2]
[346369483,1734916242848,-500.0,0.00019624,2]
[346369484,1734916242916,-500.0,0.00019624,2]
[346369485,1734916242926,-500.0,0.00019624,2]
[346369486,1734916242936,-550.24,0.00019624,2]
[346369487,1734916242945,-670.91,0.00019624,2]
[346369488,1734916242954,-500.0,0.00019624,2]
[346369489,1734916242963,-500.0,0.00019624,2]
[346369490,1734916242973,-500.0,0.00019624,2]
[346369491,1734916242982,-500.0,0.00019624,2]
[346369492,1734916242991,-500.0,0.00019624,2]
[346369493,1734916243000,-500.0,0.00019624,2]
[346369494,1734916243009,-500.0,0.00019624,2]
[346369495,1734916243018,-829.85,0.00019624,2]
[346369496,1734916243027,-574.14,0.00019624,2]
[346369497,1734916243036,-500.0,0.00019624,2]
[346369498,1734916243045,-690.07,0.00019624,2]
[346369499,1734916243055,-500.0,0.00019624,2]
[346369500,1734916243068,-500.0,0.00019624,2]
[346369501,1734916243079,-500.0,0.00019624,2]
[346369502,1734916243089,-500.0,0.00019624,2]
[346369503,1734916243098,-724.65,0.00019624,2]
[346369504,1734916243108,-500.0,0.00019624,2]
[346369505,1734916243118,-500.0,0.00019624,2]
[346369506,1734916243127,-500.0,0.00019624,2]
[346369507,1734916243136,-500.0,0.00019624,2]
[346369508,1734916243146,-500.0,0.00019624,2]
[346369509,1734916243155,-712.57,0.00019624,2]
[346369510,1734916243166,-730.89,0.00019624,2]
[346369511,1734916243175,-500.0,0.00019624,2]
[346369512,1734916243184,-500.0,0.00019624,2]
[346369513,1734916243193,-500.0,0.00019624,2]
[346369514,1734916243202,-583.09,0.00019624,2]
[346369515,1734916243213,-500.0,0.00019624,2]
[346369516,1734916243222,-517.08,0.00019624,2]
[346369517,1734916243232,-500.0,0.00019624,2]
[346369518,1734916243242,-500.0,0.00019624,2]
[346369519,1734916243251,-500.0,0.00019624,2]
[346369520,1734916243260,-648.79763194,0.00019624,2]
[346369521,1734916243269,-500.0,0.00019624,2]
[346369522,1734916243278,-500.0,0.00019624,2]
[346369523,1734916243287,-500.0,0.00019624,2]
[346369524,1734916243296,-542.54,0.00019624,2]
[346369525,1734916243305,-500.0,0.00019624,2]
[346369526,1734916243316,-660.92,0.00019624,2]
[346369527,1734916243325,-500.0,0.00019624,2]
[346369528,1734916243334,-500.0,0.00019624,2]
[346369529,1734916243342,-915.66,0.00019624,2]
[346369530,1734916243351,-651.96,0.00019624,2]
[346369531,1734916243360,-500.0,0.00019624,2]
[346369532,1734916243369,-777.05,0.00019624,2]
[346369533,1734916243378,-500.0,0.00019624,2]
[346369534,1734916243387,-558.07,0.00019624,2]
[346369535,1734916243396,-662.07,0.00019624,2]
[346369536,1734916243405,-500.0,0.00019624,2]
[346369537,1734916243414,-699.83,0.00019624,2]
[346369538,1734916243423,-661.01,0.00019624,2]
[346369539,1734916243431,-500.0,0.00019624,2]
[346369540,1734916243440,-500.0,0.00019624,2]
[346369541,1734916243449,-178.7846115,0.00019624,2]
[346369542,1734916243458,-500.0,0.00019624,2]
[346369543,1734916243468,-500.0,0.00019624,2]
[346369544,1734916243477,-669.41,0.00019624,2]
[346369545,1734916243486,-604.62,0.00019624,2]
[346369546,1734916243495,-500.0,0.00019624,2]
[346369547,1734916243504,-782.74,0.00019624,2]
[346369548,1734916243513,-500.0,0.00019624,2]
[346369549,1734916243521,-500.0,0.00019624,2]
[346369550,1734916243530,-502.87,0.00019624,2]
[346369551,1734916243539,-1064.86,0.00019624,2]
[346369552,1734916243548,-500.0,0.00019624,2]
[346369553,1734916243557,-500.0,0.00019624,2]
[346369554,1734916243567,-500.0,0.00019624,2]
[346369555,1734916243576,-500.0,0.00019624,2]
[346369556,1734916243586,-922.33,0.00019624,2]
[346369557,1734916243594,-500.0,0.00019624,2]
[346369558,1734916243603,-500.0,0.00019624,2]
[346369559,1734916243612,-1090.84,0.00019624,2]
[346369560,1734916243622,-500.0,0.00019624,2]
[346369561,1734916243631,-500.0,0.00019624,2]
[346369562,1734916243640,-500.0,0.00019624,2]
[346369563,1734916243650,-1627.76,0.00019624,2]
[346369564,1734916243659,-500.0,0.00019624,2]
[346369565,1734916243668,-1068.85,0.00019624,2]
[346369566,1734916243678,-500.0,0.00019624,2]
[346369567,1734916243687,-1374.1,0.00019624,2]
[346369568,1734916243696,-512.6,0.00019624,2]
[346369569,1734916243707,-500.0,0.00019624,2]
[346369570,1734916243716,-2578.21,0.00019624,2]
[346369571,1734916243725,-2938.59,0.00019624,2]
[346369572,1734916243734,-500.0,0.00019624,2]
[346369573,1734916243743,-859.34,0.00019624,2]
[346369574,1734916243754,-500.0,0.00019624,2]
[346369575,1734916243762,-1209.37,0.00019624,2]
[346369576,1734916243771,-500.0,0.00019624,2]
[346369577,1734916243781,-500.0,0.00019624,2]
[346369578,1734916243790,-1641.43,0.00019624,2]
[346369579,1734916243801,-2164.12,0.00019624,2]
[346369580,1734916243810,-729.37,0.00019624,2]
[346369581,1734916243820,-500.0,0.00019624,2]
[346369582,1734916243829,-981.79,0.00019624,2]
[346369583,1734916243839,-2721.09,0.00019624,2]
[346369584,1734916243848,-500.0,0.00019624,2]
[346369585,1734916243856,-500.0,0.00019624,2]
[346369586,1734916243866,-658.01,0.00019624,2]
[346369587,1734916243875,-500.0,0.00019624,2]
[346369588,1734916243884,-2716.6,0.00019624,2]
[346369589,1734916243893,-500.0,0.00019624,2]
[346369590,1734916243902,-2561.41,0.00019624,2]
[346369591,1734916243910,-627.92,0.00019625,2]
[346369592,1734916243919,-500.0,0.00019625,2]
[346369593,1734916243928,-500.0,0.00019625,2]
[346369594,1734916243937,-993.9,0.00019625,2]
[346369595,1734916243946,-1949.43,0.00019625,2]
[346369596,1734916243955,-1217.42,0.00019625,2]
[346369597,1734916243965,-500.0,0.00019625,2]
[346369598,1734916243974,-1013.7,0.00019625,2]
[346369599,1734916243983,-1254.5,0.00019625,2]
[346369600,1734916243991,-1101.66,0.00019625,2]
[346369601,1734916244000,-2021.09,0.00019625,2]
[346369602,1734916244010,-595.12,0.00019625,2]
[346369603,1734916244018,-1121.17,0.00019625,2]
[346369604,1734916244027,-12587.06,0.00019625,2]
[346369605,1734916244037,-1530.39,0.00019625,2]
[346369606,1734916244046,-938.39,0.00019625,2]
[346369607,1734916244055,-668.21,0.00019625,2]
[346369608,1734916244065,-1882.12,0.00019625,2]
[346369609,1734916244074,-10249.92,0.00019625,2]
[346369610,1734916244083,-500.0,0.00019625,2]
[346369611,1734916244092,-1089.18,0.00019625,2]
[346369612,1734916244101,-1384.25,0.00019625,2]
[346369613,1734916244111,-867.8,0.00019625,2]
[346369614,1734916244120,-1779.42,0.00019625,2]
[346369615,1734916244128,-500.0,0.00019625,2]
[346369616,1734916244137,-1000.0,0.00019625,2]
[346369617,1734916244146,-822.84,0.00019625,2]
[346369618,1734916244155,-918.32,0.00019625,2]
[346369619,1734916244164,-500.0,0.00019726,2]
[346369620,1734916244173,-386.2957005,0.00019726,2]
[346369621,1734916244183,-545.96027883,0.00019726,2]
[346369622,1734916244192,-432.45,0.00019726,2]
[346369623,1734916244201,-500.0,0.00019726,2]
[346369624,1734916244210,-442.34,0.00019726,2]
[346369625,1734916244219,-500.0,0.00019726,2]
[346369626,1734916244228,-562.44,0.00019726,2]
[346369627,1734916244236,-500.0,0.00019726,2]
[346369628,1734916244246,-500.0,0.00019726,2]
[346369629,1734916244255,-500.0,0.00019726,2]
[346369630,1734916244264,-500.0,0.00019726,2]
[346369631,1734916244274,-500.0,0.00019726,2]
[346369632,1734916244283,-500.0,0.00019726,2]
[346369633,1734916244292,-500.0,0.00019726,2]
[346369634,1734916244301,-500.0,0.00019726,2]
[346369635,1734916244310,-500.0,0.00019726,2]
[346369636,1734916244320,-500.0,0.00019726,2]
[346369637,1734916244330,-500.0,0.00019726,2]
[346369638,1734916244339,-500.0,0.00019726,2]
[346369639,1734916244348,-500.0,0.00019726,2]
[346369640,1734916244357,-511.14,0.00019726,2]
[346369641,1734916244367,-729.52,0.00019726,2]
[346369642,1734916244376,-500.0,0.00019726,2]
[346369643,1734916244384,-500.0,0.00019726,2]
[346369644,1734916244393,-240.58,0.00019726,2]
[346369645,1734916244403,-500.0,0.00019726,2]
[346369646,1734916244412,-500.0,0.00019726,2]
[346369647,1734916244422,-500.0,0.00019726,2]
[346369648,1734916244431,-501.14,0.00019726,2]
[346369649,1734916244440,-634.57,0.00019726,2]
[346369650,1734916244450,-780.06,0.00019726,2]
[346369651,1734916244459,-500.0,0.00019726,2]
[346369652,1734916244468,-500.0,0.00019726,2]
[346369653,1734916244478,-500.0,0.00019726,2]
[346369654,1734916244487,-633.52,0.00019726,2]
[346369655,1734916244496,-500.0,0.00019726,2]
[346369656,1734916244506,-629.03,0.00019726,2]
[346369657,1734916244515,-500.0,0.00019726,2]
[346369658,1734916244524,-512.65,0.00019726,2]
[346369659,1734916244533,-500.0,0.00019726,2]
[346369660,1734916244543,-500.0,0.00019726,2]
[346369661,1734916244552,-500.0,0.00019726,2]
[346369662,1734916244562,-500.0,0.00019726,2]
[346369663,1734916244573,-507.34,0.00019726,2]
[346369664,1734916244582,-1121.35,0.00019726,2]
[346369665,1734916244592,-500.0,0.00019726,2]
[346369666,1734916244602,-1693.04,0.00019726,2]
[346369667,1734916244611,-3064.32,0.00019726,2]
[346369668,1734916244621,-500.0,0.00019726,2]
[346369669,1734916244630,-540.71,0.00019726,2]
[346369670,1734916244640,-1613.470874,0.00019726,2]
[346369671,1734916244650,-630.9,0.00019726,2]
[346369672,1734916244659,-159.044859,0.00019726,2]
[346369673,1734916244670,-500.0,0.00019726,2]
[346369674,1734916244680,-1300.027125,0.00019726,2]
[346369675,1734916244691,-1388.38,0.00019726,2]
[346369676,1734916244702,-1111.56,0.00019726,2]
[346369677,1734916244712,-500.0,0.00019726,2]
[346369678,1734916244721,-1024.06,0.00019726,2]
[346369679,1734916244731,-772.27,0.00019726,2]
[346369680,1734916244740,-1934.39,0.00019726,2]
[346369681,1734916244750,-500.0,0.00019726,2]
[346369682,1734916244760,-560.82,0.00019726,2]
[346369683,1734916244770,-3543.54,0.00019726,2]
[346369684,1734916244779,-855.48,0.00019726,2]
[346369685,1734916244789,-1069.68,0.00019726,2]
[346369686,1734916244800,-500.0,0.00019726,2]
[346369687,1734916244809,-782.18,0.00019726,2]
[346369688,1734916244822,-4233.7,0.00019726,2]
[346369689,1734916244832,-908.07,0.00019726,2]
[346369690,1734916244842,-776.31,0.00019726,2]
[346369691,1734916244852,-500.0,0.00019726,2]
[346369692,1734916244861,-1059.36,0.00019726,2]
[346369693,1734916244871,-500.0,0.00019726,2]
[346369694,1734916244881,-1019.52,0.00019726,2]
[346369695,1734916244891,-780.44,0.00019726,2]
[346369696,1734916244900,-500.0,0.00019726,2]
[346369697,1734916244910,-500.0,0.00019726,2]
[346369698,1734916244919,-1104.92,0.00019726,2]
[346369699,1734916244928,-500.0,0.00019726,2]
[346369700,1734916244938,-1097.33,0.00019726,2]
[346369701,1734916244948,-1239.45,0.00019726,2]
[346369702,1734916244958,-500.0,0.00019726,2]
[346369703,1734916244967,-500.0,0.00019726,2]
[346369704,1734916244977,-1249.64,0.00019726,2]
[346369705,1734916244986,-2260.7,0.00019726,2]
[346369706,1734916244995,-1331.3,0.00019726,2]
[346369707,1734916245005,-500.0,0.00019726,2]
[346369708,1734916245014,-2676.93,0.00019726,2]
[346369709,1734916245023,-1312.24,0.00019726,2]
[346369710,1734916245033,-806.4,0.00019726,2]